[Event "Turkish Youth Championships 2023"]
[Site "Samsun"]
[Date "2023.05.25"]
[Round "9.18"]
[White "Duygulu, Ugur"]
[Black "Kurtyilmaz, Kuzey"]
[Result "0-1"]
[WhiteElo "1161"]
[BlackElo "1608"]
[PlyCount "94"]
[EventDate "2023.05.19"]
[EventType "swiss"]
[EventCountry "TUR"]
[TimeControl "5400+30"]
[WhiteClock "0:13:15"]

1. e4 e5 2. Nf3 Nc6 3. Nc3 Nf6 {[%emt 0:01:00]} 4. Be2 {[%emt 0:05:30]} d5 {[%emt 0:00:30]} 5. exd5 {[%emt 0:00:30]} Nxd5 {[%emt 0:00:30]} 6. O-O {[%emt 0:00:30]} Nxc3 {[%emt 0:00:30]} 7. bxc3 {[%emt 0:00:30]} e4 {[%emt 0:00:00]} 8. Ne1 {[%emt 0:00:30]} Bd6 {[%emt 0:00:00]} 9. d3 {[%emt 0:07:30]} Bf5 {[%emt 0:00:00]} 10. dxe4 {[%emt 0:01:30]} Bxe4 {[%emt 0:00:00]} 11. Bd3 {[%emt 0:00:30]} O-O {[%emt 0:00:00]} 12. Nf3 {[%emt 0:02:30]} Bg6 {[%emt 0:02:00]} 13. Rb1 {[%emt 0:02:30]} b6 {[%emt 0:00:30]} 14. Bxg6 {[%emt 0:01:30]} hxg6 {[%emt 0:00:30]} 15. Bg5 {[%emt 0:01:30]} Qd7 {[%emt 0:00:30]} 16. Re1 {[%emt 0:00:30]} Qf5 {[%emt 0:08:30]} 17. Qd3 {[%emt 0:02:30]} Qxd3 {[%emt 0:00:30]} 18. cxd3 {[%emt 0:00:30]} f6 {[%emt 0:04:30]} 19. Bh4 {[%emt 0:09:30]} Rad8 {[%emt 0:00:30]} 20. d4 {[%emt 0:00:30]} Na5 {[%emt 0:01:30]} 21. Nd2 {[%emt 0:05:30]} Kf7 {[%emt 0:05:30]} 22. f3 {[%emt 0:04:30]} Bf4 {[%emt 0:02:30]} 23. Ne4 {[%emt 0:00:30]} Nc4 {[%emt 0:01:30]} 24. Bg3 {[%emt 0:10:30]} g5 {[%emt 0:01:30]} 25. h4 {[%emt 0:10:30]} Bxg3 {[%emt 0:03:30]} 26. Nxg3 {[%emt 0:00:30]} gxh4 {[%emt 0:00:30]} 27. Nf5 {[%emt 0:00:30]} Rfe8 {[%emt 0:00:00]} 28. Nxh4 {[%emt 0:01:30]} Rd5 {[%emt 0:01:00]} 29. g4 {[%emt 0:01:30]} Ra5 {[%emt 0:01:30]} 30. Rxe8 {[%emt 0:00:30]} Kxe8 {[%emt 0:01:30]} 31. Re1+ {[%emt 0:00:30]} Kf8 {[%emt 0:00:00]} 32. Re2 {[%emt 0:02:30]} Ra3 {[%emt 0:00:00]} 33. Ng6+ {[%emt 0:09:30]} Kf7 {[%emt 0:01:30]} 34. Ne7 {[%emt 0:00:30]} Rxc3 {[%emt 0:01:30]} 35. Nd5 {[%emt 0:00:30]} Rc1+ {[%emt 0:00:30]} 36. Kg2 {[%emt 0:00:36]} c6 {[%emt 0:00:30]} 37. Nb4 {[%emt 0:00:24]} Na3 {[%emt 0:01:30]} 38. Kg3 {[%emt 0:01:51]} a5 {[%emt 0:00:30]} 39. Na6 {[%emt 0:02:09]} Rc2 {[%emt 0:01:30]} 40. Re3 {[%emt 0:00:01]} Nb5 {[%emt 0:00:30]} 41. d5 {[%emt 0:02:18]} cxd5 {[%emt 0:00:30]} 42. Rb3 {[%emt 0:00:12]} Nd4 {[%emt 0:01:30]} 43. Rxb6 Rxa2 {[%emt 0:00:30]} 44. Rd6 {[%emt 0:00:51]} Rd2 {[%emt 0:00:30]} 45. Nc5 {[%emt 0:00:30]} Rc2 {[%emt 0:03:30]} 46. Rxd5 {[%emt 0:03:49]} Ne2+ {[%emt 0:00:30]} 47. Kh4 {[%emt 0:00:18]} g5+ {[%emt 0:00:00]} 0-1

[Event "Turkish Youth Championships 2023"]
[Site "Samsun"]
[Date "2023.05.25"]
[Round "9.20"]
[White "Hasirci, Ali Eren"]
[Black "Hasirci, Ozgur Deniz"]
[Result "1/2-1/2"]
[WhiteElo "1284"]
[BlackElo "1763"]
[PlyCount "108"]
[EventDate "2023.05.19"]
[EventType "swiss"]
[EventCountry "TUR"]
[TimeControl "5400+30"]
[WhiteClock "0:07:01"]

1. d4 Nf6 2. e3 d5 3. Nf3 c5 4. c3 Nc6 5. Bd3 e6 6. Nbd2 Bd6 7. O-O {[%emt 0:03:00]} O-O {[%emt 0:04:00]} 8. dxc5 {[%emt 0:07:30]} Bxc5 {[%emt 0:00:30]} 9. e4 {[%emt 0:00:30]} Be7 {[%emt 0:05:30]} 10. exd5 {[%emt 0:04:30]} Nxd5 {[%emt 0:00:30]} 11. Nc4 {[%emt 0:07:30]} Bf6 {[%emt 0:01:30]} 12. Re1 {[%emt 0:01:30]} Qc7 {[%emt 0:03:30]} 13. Qe2 {[%emt 0:01:30]} b6 {[%emt 0:09:30]} 14. Bd2 {[%emt 0:14:30]} Nce7 {[%emt 0:08:30]} 15. Nce5 {[%emt 0:03:30]} Ng6 {[%emt 0:01:30]} 16. Nxg6 {[%emt 0:02:30]} hxg6 {[%emt 0:00:30]} 17. Be4 {[%emt 0:01:30]} Bb7 {[%emt 0:01:30]} 18. Rad1 {[%emt 0:02:30]} Rad8 {[%emt 0:02:30]} 19. c4 {[%emt 0:04:30]} Ba6 {[%emt 0:01:30]} 20. b3 {[%emt 0:02:30]} Nf4 {[%emt 0:34:30]} 21. Qe3 {[%emt 0:04:30]} e5 {[%emt 0:01:30]} 22. g3 {[%emt 0:02:30]} Ne6 {[%emt 0:00:00]} 23. Bc3 {[%emt 0:02:30]} b5 {[%emt 0:04:00]} 24. cxb5 {[%emt 0:03:30]} Bxb5 {[%emt 0:00:30]} 25. Rd5 {[%emt 0:01:30]} Rxd5 {[%emt 0:04:32]} 26. Bxd5 {[%emt 0:00:30]} Nc5 {[%emt 0:06:44]} 27. Bxe5 {[%emt 0:07:30]} Bxe5 {[%emt 0:02:25]} 28. Nxe5 {[%emt 0:02:30]} Qd6 {[%emt 0:02:17]} 29. Bc4 {[%emt 0:02:30]} Bxc4 {[%emt 0:01:03]} 30. Nxc4 {[%emt 0:00:30]} Qc6 {[%emt 0:00:00]} 31. Ne5 {[%emt 0:03:18]} Qd6 {[%emt 0:00:00]} 32. b4 {[%emt 0:02:09]} Na4 {[%emt 0:01:50]} 33. Qb3 {[%emt 0:03:09]} Qd2 {[%emt 0:00:52]} 34. Rd1 {[%emt 0:00:29]} Qe2 {[%emt 0:00:24]} 35. Qxa4 {[%emt 0:04:11]} Qxe5 {[%emt 0:00:05]} 36. Qxa7 {[%emt 0:00:55]} Qe2 {[%emt 0:00:22]} 37. Qa4 {[%emt 0:00:05]} Rb8 {[%emt 0:00:04]} 38. a3 {[%emt 0:00:49]} Qf3 {[%emt 0:00:04]} 39. Rb1 {[%emt 0:01:34]} Ra8 {[%emt 0:00:41]} 40. Qb3 {[%emt 0:00:05]} Rxa3 {[%emt 0:00:00]} 41. Qxf3 {[%emt 0:00:30]} Rxf3 {[%emt 0:00:21]} 42. b5 {[%emt 0:00:30]} Ra3 {[%emt 0:00:30]} 43. b6 {[%emt 0:00:30]} Ra8 {[%emt 0:00:30]} 44. b7 {[%emt 0:00:00]} Rb8 {[%emt 0:00:00]} 45. f4 {[%emt 0:00:00]} Kf8 {[%emt 0:00:00]} 46. Kf2 {[%emt 0:00:00]} Ke7 {[%emt 0:00:00]} 47. Ke3 {[%emt 0:00:00]} Kd7 {[%emt 0:00:00]} 48. Kd4 {[%emt 0:00:57]} Kc6 {[%emt 0:00:00]} 49. g4 {[%emt 0:03:34]} Rxb7 {[%emt 0:00:00]} 50. Rxb7 {[%emt 0:00:23]} Kxb7 {[%emt 0:00:00]} 51. Ke5 {[%emt 0:00:24]} Kc7 {[%emt 0:00:00]} 52. g5 {[%emt 0:00:21]} Kd7 {[%emt 0:00:00]} 53. f5 {[%emt 0:00:52]} gxf5 {[%emt 0:00:00]} 54. Kxf5 {[%emt 0:00:30]} Ke7 {[%emt 0:00:00]} 1/2-1/2